[Event "Titled Tuesday Blitz July 4 Late 2023"]
[White "Antonio, Jorge Carlos"]
[Black "Vega Gutierrez, Sabrina"]
[WhiteFideId "113190"]
[BlackFideId "2219026"]
[WhiteElo "2291"]
[BlackElo "2400"]
[Result "0-1"]
[Round "11"]
[TimeControl "180+2"]
[Date "2023.07.04"]
[WhiteClock "0:00:57"]
[BlackClock "0:00:02"]
[Board "87"]

1. d4 {[%clk 0:03:00]}  d5 {[%clk 0:02:22]} 2. Nf3 {[%clk 0:02:58]}  e6 {[%clk 0:02:19]} 3. Bf4 {[%clk 0:02:56]}  Bd6 {[%clk 0:02:17]} 4. Bxd6 {[%clk 0:02:55]}  cxd6 {[%clk 0:02:15]} 5. e3 {[%clk 0:02:54]}  Nf6 {[%clk 0:02:08]} 6. c4 {[%clk 0:02:52]}  dxc4 {[%clk 0:02:05]} 7. Bxc4 {[%clk 0:02:51]}  O-O {[%clk 0:02:06]} 8. O-O {[%clk 0:02:49]}  b6 {[%clk 0:02:04]} 9. Nc3 {[%clk 0:02:49]}  Bb7 {[%clk 0:02:03]} 10. Be2 {[%clk 0:02:48]}  Nbd7 {[%clk 0:01:54]} 11. Rc1 {[%clk 0:02:47]}  a6 {[%clk 0:01:54]} 12. Qb3 {[%clk 0:02:43]}  b5 {[%clk 0:01:54]} 13. a4 {[%clk 0:02:42]}  Rb8 {[%clk 0:01:33]} 14. axb5 {[%clk 0:02:41]}  axb5 {[%clk 0:01:33]} 15. Bxb5 {[%clk 0:02:39]}  Bc6 {[%clk 0:00:45]} 16. Qc4 {[%clk 0:02:30]}  Bxb5 {[%clk 0:00:40]} 17. Nxb5 {[%clk 0:02:29]}  Qb6 {[%clk 0:00:41]} 18. Nc3 {[%clk 0:02:11]}  Rfc8 {[%clk 0:00:41]} 19. Qa2 {[%clk 0:02:03]}  Qxb2 {[%clk 0:00:35]} 20. Qxb2 {[%clk 0:02:02]}  Rxb2 {[%clk 0:00:36]} 21. Rb1 {[%clk 0:01:49]}  Rxb1 {[%clk 0:00:32]} 22. Nxb1 {[%clk 0:01:48]}  Ne4 {[%clk 0:00:31]} 23. Nbd2 {[%clk 0:01:48]}  Ndf6 {[%clk 0:00:28]} 24. Rb1 {[%clk 0:01:40]}  g5 {[%clk 0:00:25]} 25. Nxe4 {[%clk 0:01:38]}  Nxe4 {[%clk 0:00:25]} 26. h3 {[%clk 0:01:38]}  Kg7 {[%clk 0:00:21]} 27. Rf1 {[%clk 0:01:30]}  h5 {[%clk 0:00:20]} 28. g4 {[%clk 0:01:23]}  h4 {[%clk 0:00:10]} 29. Kg2 {[%clk 0:01:21]}  Kg6 {[%clk 0:00:10]} 30. Ne1 {[%clk 0:01:19]}  Rc2 {[%clk 0:00:09]} 31. Nd3 {[%clk 0:01:18]}  Rd2 {[%clk 0:00:10]} 32. Nb4 {[%clk 0:01:18]}  Rb2 {[%clk 0:00:10]} 33. Nc6 {[%clk 0:01:18]}  Nd2 {[%clk 0:00:08]} 34. Ne7+ {[%clk 0:01:16]}  Kf6 {[%clk 0:00:07]} 35. Nc8 {[%clk 0:01:16]}  Nxf1 {[%clk 0:00:07]} 36. Kxf1 {[%clk 0:01:14]}  d5 {[%clk 0:00:07]} 37. Na7 {[%clk 0:01:10]}  Rb6 {[%clk 0:00:06]} 38. Nc8 {[%clk 0:01:10]}  Ra6 {[%clk 0:00:07]} 39. Ke2 {[%clk 0:01:07]}  Ra2+ {[%clk 0:00:04]} 40. Kf3 {[%clk 0:01:07]}  Ra6 {[%clk 0:00:05]} 41. Ke2 {[%clk 0:01:04]}  e5 {[%clk 0:00:06]} 42. dxe5+ {[%clk 0:01:03]}  Kxe5 {[%clk 0:00:06]} 43. Kf3 {[%clk 0:01:03]}  Ke6 {[%clk 0:00:06]} 44. Ke2 {[%clk 0:01:02]}  Kd7 {[%clk 0:00:06]} 45. Kd3 {[%clk 0:00:58]}  Kxc8 {[%clk 0:00:06]} 46. Kd4 {[%clk 0:00:57]}  Ra2 {[%clk 0:00:06]} 47. f4 {[%clk 0:00:57]}  gxf4 {[%clk 0:00:05]} 48. exf4 {[%clk 0:00:57]}  Rh2 {[%clk 0:00:05]} 49. Kxd5 {[%clk 0:00:57]}  Rxh3 {[%clk 0:00:06]} 50. Ke5 {[%clk 0:00:57]}  Rg3 {[%clk 0:00:06]} 51. g5 {[%clk 0:00:57]}  h3 {[%clk 0:00:06]} 52. Kf6 {[%clk 0:00:57]}  h2 {[%clk 0:00:05]} 53. Kxf7 {[%clk 0:00:57]}  h1=Q {[%clk 0:00:06]} 54. f5 {[%clk 0:00:58]}  Qh5+ {[%clk 0:00:06]} 55. g6 {[%clk 0:00:58]}  Qxf5+ {[%clk 0:00:05]} 56. Kg7 {[%clk 0:00:57]}  Qxg6+ {[%clk 0:00:05]} 57. Kh8 {[%clk 0:00:57]}  Qg7# {[%clk 0:00:02]} 0-1


[Site "https://www.chess.com"]

[Event "Titled Tuesday Blitz July 4 Late 2023"]
[White "ChawitAp"]
[Black "Horokoskii"]
[WhiteElo "2368"]
[BlackElo "2110"]
[Result "1-0"]
[Round "11"]
[TimeControl "180+2"]
[Date "2023.07.04"]
[WhiteClock "0:01:02"]
[BlackClock "0:01:10"]
[Board "92"]

1. e4 {[%clk 0:02:58]}  e6 {[%clk 0:02:53]} 2. d4 {[%clk 0:02:58]}  d5 {[%clk 0:02:51]} 3. Nd2 {[%clk 0:02:59]}  Nf6 {[%clk 0:02:50]} 4. e5 {[%clk 0:02:56]}  Nfd7 {[%clk 0:02:50]} 5. Bd3 {[%clk 0:02:54]}  c5 {[%clk 0:02:50]} 6. c3 {[%clk 0:02:55]}  Nc6 {[%clk 0:02:48]} 7. Ne2 {[%clk 0:02:55]}  b6 {[%clk 0:02:42]} 8. O-O {[%clk 0:02:54]}  cxd4 {[%clk 0:02:42]} 9. cxd4 {[%clk 0:02:55]}  Nb4 {[%clk 0:02:42]} 10. Bb1 {[%clk 0:02:54]}  Ba6 {[%clk 0:02:38]} 11. Nf3 {[%clk 0:02:50]}  Rc8 {[%clk 0:02:36]} 12. a3 {[%clk 0:02:48]}  Nc6 {[%clk 0:02:34]} 13. Re1 {[%clk 0:02:33]}  Be7 {[%clk 0:02:31]} 14. Bf4 {[%clk 0:02:29]}  Na5 {[%clk 0:02:19]} 15. Ng3 {[%clk 0:02:15]}  h5 {[%clk 0:02:07]} 16. b4 {[%clk 0:02:03]}  Nc4 {[%clk 0:01:49]} 17. Nd2 {[%clk 0:01:55]}  Nxd2 {[%clk 0:01:43]} 18. Bxd2 {[%clk 0:01:50]}  Bg5 {[%clk 0:01:42]} 19. f4 {[%clk 0:01:35]}  Bh4 {[%clk 0:01:41]} 20. f5 {[%clk 0:01:26]}  Bg5 {[%clk 0:01:36]} 21. fxe6 {[%clk 0:01:23]}  fxe6 {[%clk 0:01:35]} 22. Bg6+ {[%clk 0:01:21]}  Kf8 {[%clk 0:01:29]} 23. Qf3+ {[%clk 0:01:15]}  Bf6 {[%clk 0:01:28]} 24. exf6 {[%clk 0:01:10]}  Nxf6 {[%clk 0:01:10]} 25. Rxe6 {[%clk 0:01:02]} 1-0


[Site "https://www.chess.com"]

[Event "Titled Tuesday Blitz July 4 Late 2023"]
[White "Vaglio Munoz, Jaime"]
[Black "D`Arruda, Ricardo D."]
[WhiteFideId "6500145"]
[BlackFideId "100692"]
[WhiteElo "2302"]
[BlackElo "2526"]
[Result "0-1"]
[Round "11"]
[TimeControl "180+2"]
[Date "2023.07.04"]
[WhiteClock "0:00:52"]
[BlackClock "0:00:39"]
[Board "95"]

1. e4 {[%clk 0:03:00]}  c5 {[%clk 0:02:18]} 2. a3 {[%clk 0:02:59]}  e6 {[%clk 0:02:17]} 3. b4 {[%clk 0:02:58]}  cxb4 {[%clk 0:02:17]} 4. axb4 {[%clk 0:02:59]}  Bxb4 {[%clk 0:02:16]} 5. c3 {[%clk 0:03:00]}  Be7 {[%clk 0:02:15]} 6. d4 {[%clk 0:03:00]}  d6 {[%clk 0:02:13]} 7. f4 {[%clk 0:02:59]}  Nf6 {[%clk 0:02:12]} 8. e5 {[%clk 0:02:58]}  Nfd7 {[%clk 0:02:11]} 9. Qg4 {[%clk 0:02:57]}  O-O {[%clk 0:02:10]} 10. Bd3 {[%clk 0:02:56]}  f5 {[%clk 0:02:09]} 11. Qh3 {[%clk 0:02:54]}  Nc6 {[%clk 0:02:04]} 12. g4 {[%clk 0:02:54]}  g6 {[%clk 0:02:03]} 13. gxf5 {[%clk 0:02:53]}  exf5 {[%clk 0:02:03]} 14. Ne2 {[%clk 0:02:51]}  Nb6 {[%clk 0:01:54]} 15. Rg1 {[%clk 0:02:51]}  dxe5 {[%clk 0:01:51]} 16. fxe5 {[%clk 0:02:50]}  Be6 {[%clk 0:01:49]} 17. Nf4 {[%clk 0:02:49]}  Bh4+ {[%clk 0:01:40]} 18. Ke2 {[%clk 0:02:43]}  Bc4 {[%clk 0:01:39]} 19. Bxc4+ {[%clk 0:02:25]}  Nxc4 {[%clk 0:01:40]} 20. Ne6 {[%clk 0:02:25]}  Qe7 {[%clk 0:01:40]} 21. Nxf8 {[%clk 0:02:22]}  Rxf8 {[%clk 0:01:39]} 22. Ba3 {[%clk 0:02:14]}  Nxa3 {[%clk 0:01:39]} 23. Rxa3 {[%clk 0:02:11]}  Bg5 {[%clk 0:01:30]} 24. Qf3 {[%clk 0:02:05]}  Rd8 {[%clk 0:01:20]} 25. h4 {[%clk 0:02:01]}  Bxh4 {[%clk 0:01:14]} 26. Qxf5 {[%clk 0:01:59]}  Kh8 {[%clk 0:01:14]} 27. Qe4 {[%clk 0:01:57]}  Rf8 {[%clk 0:01:11]} 28. Rg2 {[%clk 0:01:46]}  Qf7 {[%clk 0:01:09]} 29. Kd3 {[%clk 0:01:44]}  Qf1+ {[%clk 0:01:06]} 30. Qe2 {[%clk 0:01:38]}  Qxb1+ {[%clk 0:01:05]} 31. Qc2 {[%clk 0:01:35]}  Qf1+ {[%clk 0:01:01]} 32. Qe2 {[%clk 0:01:35]}  Qf5+ {[%clk 0:01:01]} 33. Qe4 {[%clk 0:01:33]}  Nxe5+ {[%clk 0:00:56]} 34. Ke3 {[%clk 0:01:26]}  Bg5+ {[%clk 0:00:55]} 35. Rxg5 {[%clk 0:01:25]}  Qxg5+ {[%clk 0:00:56]} 36. Ke2 {[%clk 0:01:24]}  Qh5+ {[%clk 0:00:53]} 37. Ke1 {[%clk 0:01:13]}  Nc4 {[%clk 0:00:53]} 38. Ra2 {[%clk 0:01:11]}  g5 {[%clk 0:00:47]} 39. Rf2 {[%clk 0:01:08]}  Re8 {[%clk 0:00:46]} 40. Rf8+ {[%clk 0:01:03]}  Rxf8 {[%clk 0:00:45]} 41. Qxb7 {[%clk 0:00:56]}  Qh4+ {[%clk 0:00:42]} 42. Ke2 {[%clk 0:00:55]}  Rf2+ {[%clk 0:00:42]} 43. Kd1 {[%clk 0:00:53]}  Qg4+ {[%clk 0:00:39]} 44. Kc1 {[%clk 0:00:52]}  Qg1# {[%clk 0:00:39]} 0-1


[Site "https://www.chess.com"]

[Event "Titled Tuesday Blitz July 4 Late 2023"]
[White "Graham, Nathaniel"]
[Black "Silva Lucena, Cristian"]
[WhiteFideId "2007983"]
[BlackFideId "2232588"]
[WhiteElo "2074"]
[BlackElo "2390"]
[Result "1/2-1/2"]
[Round "11"]
[TimeControl "180+2"]
[Date "2023.07.04"]
[WhiteClock "0:00:08"]
[BlackClock "0:01:01"]
[Board "97"]

1. e4 {[%clk 0:02:56]}  e5 {[%clk 0:02:58]} 2. Nf3 {[%clk 0:02:56]}  Nc6 {[%clk 0:02:58]} 3. Nc3 {[%clk 0:02:57]}  Nf6 {[%clk 0:02:58]} 4. Bb5 {[%clk 0:02:57]}  Nd4 {[%clk 0:02:56]} 5. Nxd4 {[%clk 0:02:56]}  exd4 {[%clk 0:02:55]} 6. e5 {[%clk 0:02:57]}  dxc3 {[%clk 0:02:53]} 7. exf6 {[%clk 0:02:58]}  cxd2+ {[%clk 0:02:52]} 8. Bxd2 {[%clk 0:02:56]}  Qxf6 {[%clk 0:02:52]} 9. O-O {[%clk 0:02:57]}  c6 {[%clk 0:02:43]} 10. Re1+ {[%clk 0:02:55]}  Be7 {[%clk 0:02:43]} 11. Bc3 {[%clk 0:02:52]}  Qg5 {[%clk 0:02:32]} 12. Re5 {[%clk 0:02:51]}  Qf6 {[%clk 0:02:28]} 13. Re3 {[%clk 0:02:34]}  Qh4 {[%clk 0:02:21]} 14. g3 {[%clk 0:02:27]}  Qg5 {[%clk 0:02:20]} 15. Re5 {[%clk 0:02:17]}  Qf6 {[%clk 0:02:20]} 16. Qe2 {[%clk 0:01:47]}  d6 {[%clk 0:01:57]} 17. Re3 {[%clk 0:01:45]}  Qg5 {[%clk 0:01:53]} 18. h4 {[%clk 0:01:26]}  Bg4 {[%clk 0:01:52]} 19. Qe1 {[%clk 0:01:21]}  Qxb5 {[%clk 0:01:48]} 20. Rxe7+ {[%clk 0:01:21]}  Kf8 {[%clk 0:01:48]} 21. Qe3 {[%clk 0:00:48]}  Be6 {[%clk 0:01:34]} 22. Rxe6 {[%clk 0:00:41]}  fxe6 {[%clk 0:01:35]} 23. Qxe6 {[%clk 0:00:41]}  Qd5 {[%clk 0:01:31]} 24. Qd7 {[%clk 0:00:35]}  Qf7 {[%clk 0:01:31]} 25. Qxd6+ {[%clk 0:00:35]}  Kg8 {[%clk 0:01:31]} 26. Re1 {[%clk 0:00:28]}  Re8 {[%clk 0:01:30]} 27. Rxe8+ {[%clk 0:00:17]}  Qxe8 {[%clk 0:01:31]} 28. Qc7 {[%clk 0:00:15]}  Qf8 {[%clk 0:01:18]} 29. Qxb7 {[%clk 0:00:13]}  h6 {[%clk 0:01:18]} 30. Qxc6 {[%clk 0:00:12]}  Qf7 {[%clk 0:01:13]} 31. Qe4 {[%clk 0:00:08]}  Qxa2 {[%clk 0:01:05]} 32. Qe8+ {[%clk 0:00:07]}  Kh7 {[%clk 0:01:04]} 33. Qe4+ {[%clk 0:00:08]}  Kg8 {[%clk 0:01:00]} 34. Qe8+ {[%clk 0:00:08]}  Kh7 {[%clk 0:01:00]} 35. Qe4+ {[%clk 0:00:08]}  Kg8 {[%clk 0:01:01]} 1/2-1/2


[Site "https://www.chess.com"]

[Event "Titled Tuesday Blitz July 4 Late 2023"]
[White "Pein, Jonathan"]
[Black "Ferriz Barrios, Andres"]
[WhiteFideId "417092"]
[BlackFideId "5104467"]
[WhiteElo "2420"]
[BlackElo "2192"]
[Result "1-0"]
[Round "11"]
[TimeControl "180+2"]
[Date "2023.07.04"]
[WhiteClock "0:01:47"]
[BlackClock "0:01:29"]
[Board "100"]

1. e4 {[%clk 0:03:00]}  c5 {[%clk 0:02:58]} 2. g3 {[%clk 0:02:59]}  Nc6 {[%clk 0:02:58]} 3. Bg2 {[%clk 0:03:00]}  e5 {[%clk 0:02:59]} 4. Ne2 {[%clk 0:03:01]}  g6 {[%clk 0:02:59]} 5. Nbc3 {[%clk 0:03:01]}  Bg7 {[%clk 0:03:00]} 6. d3 {[%clk 0:03:01]}  Nge7 {[%clk 0:03:00]} 7. O-O {[%clk 0:03:02]}  Nd4 {[%clk 0:03:01]} 8. f4 {[%clk 0:03:02]}  d6 {[%clk 0:03:01]} 9. Rb1 {[%clk 0:03:03]}  O-O {[%clk 0:03:01]} 10. f5 {[%clk 0:03:01]}  gxf5 {[%clk 0:03:01]} 11. exf5 {[%clk 0:03:01]}  Nexf5 {[%clk 0:03:02]} 12. Nd5 {[%clk 0:03:00]}  Be6 {[%clk 0:03:00]} 13. c3 {[%clk 0:03:00]}  Nc6 {[%clk 0:02:48]} 14. Kh1 {[%clk 0:02:57]}  Kh8 {[%clk 0:02:48]} 15. Be4 {[%clk 0:02:57]}  Nce7 {[%clk 0:02:45]} 16. Nxe7 {[%clk 0:02:55]}  Nxe7 {[%clk 0:02:46]} 17. Bxb7 {[%clk 0:02:55]}  Qb8 {[%clk 0:02:39]} 18. Bg2 {[%clk 0:02:44]}  Bxa2 {[%clk 0:02:37]} 19. Ra1 {[%clk 0:02:44]}  Bd5 {[%clk 0:02:37]} 20. Bg5 {[%clk 0:02:33]}  Qb7 {[%clk 0:02:34]} 21. Bxd5 {[%clk 0:02:25]}  Nxd5 {[%clk 0:02:33]} 22. Kg1 {[%clk 0:02:24]}  f6 {[%clk 0:02:33]} 23. Bd2 {[%clk 0:02:24]}  f5 {[%clk 0:02:33]} 24. Qc2 {[%clk 0:02:17]}  f4 {[%clk 0:02:31]} 25. gxf4 {[%clk 0:02:17]}  exf4 {[%clk 0:02:28]} 26. Nxf4 {[%clk 0:02:17]}  Nxf4 {[%clk 0:02:27]} 27. Bxf4 {[%clk 0:02:18]}  Be5 {[%clk 0:02:24]} 28. Bg3 {[%clk 0:01:51]}  Rg8 {[%clk 0:02:08]} 29. Qg2 {[%clk 0:01:51]}  Qe7 {[%clk 0:01:58]} 30. Rae1 {[%clk 0:01:50]}  Rg5 {[%clk 0:01:53]} 31. Kh1 {[%clk 0:01:50]}  Rag8 {[%clk 0:01:53]} 32. d4 {[%clk 0:01:50]}  cxd4 {[%clk 0:01:51]} 33. cxd4 {[%clk 0:01:51]}  Qf6 {[%clk 0:01:34]} 34. Rxf6 {[%clk 0:01:48]}  Bxf6 {[%clk 0:01:29]} 35. Qf2 {[%clk 0:01:47]} 1-0


[Site "https://www.chess.com"]

[Event "Titled Tuesday Blitz July 4 Late 2023"]
[White "Cardozo Munar, Carlos Eduardo"]
[Black "Vila Dupla, Aurelio"]
[WhiteFideId "4409477"]
[BlackFideId "2203383"]
[WhiteElo "2320"]
[BlackElo "2173"]
[Result "0-1"]
[Round "11"]
[TimeControl "180+2"]
[Date "2023.07.04"]
[WhiteClock "0:00:12"]
[BlackClock "0:00:26"]
[Board "101"]

1. e4 {[%clk 0:02:52]}  c5 {[%clk 0:02:52]} 2. Nf3 {[%clk 0:02:49]}  d6 {[%clk 0:02:52]} 3. g3 {[%clk 0:02:50]}  g6 {[%clk 0:02:49]} 4. Bg2 {[%clk 0:02:51]}  Bg7 {[%clk 0:02:49]} 5. O-O {[%clk 0:02:52]}  e5 {[%clk 0:02:50]} 6. d3 {[%clk 0:02:53]}  Ne7 {[%clk 0:02:49]} 7. Nbd2 {[%clk 0:02:54]}  O-O {[%clk 0:02:48]} 8. c3 {[%clk 0:02:55]}  Nbc6 {[%clk 0:02:46]} 9. Re1 {[%clk 0:02:56]}  b5 {[%clk 0:02:43]} 10. Nf1 {[%clk 0:02:57]}  b4 {[%clk 0:02:43]} 11. a3 {[%clk 0:02:55]}  bxc3 {[%clk 0:02:37]} 12. bxc3 {[%clk 0:02:55]}  Rb8 {[%clk 0:02:37]} 13. h4 {[%clk 0:02:52]}  h5 {[%clk 0:02:34]} 14. Ne3 {[%clk 0:02:50]}  Ba6 {[%clk 0:02:27]} 15. Ng5 {[%clk 0:02:41]}  Bb5 {[%clk 0:02:25]} 16. a4 {[%clk 0:02:38]}  Ba6 {[%clk 0:02:22]} 17. Bh3 {[%clk 0:02:33]}  Na5 {[%clk 0:02:21]} 18. Nc2 {[%clk 0:01:59]}  d5 {[%clk 0:02:14]} 19. exd5 {[%clk 0:01:38]}  Nxd5 {[%clk 0:02:12]} 20. Bd2 {[%clk 0:01:35]}  Nb3 {[%clk 0:01:56]} 21. Rb1 {[%clk 0:01:32]}  Bxd3 {[%clk 0:01:49]} 22. Rxb3 {[%clk 0:01:05]}  Rxb3 {[%clk 0:01:47]} 23. Ne3 {[%clk 0:01:05]}  c4 {[%clk 0:01:37]} 24. Qf3 {[%clk 0:00:52]}  Nxe3 {[%clk 0:01:35]} 25. Rxe3 {[%clk 0:00:50]}  e4 {[%clk 0:01:22]} 26. Qf4 {[%clk 0:00:48]}  Bxc3 {[%clk 0:01:15]} 27. Bxc3 {[%clk 0:00:48]}  Rxc3 {[%clk 0:01:15]} 28. Nxe4 {[%clk 0:00:46]}  Rc1+ {[%clk 0:01:14]} 29. Kh2 {[%clk 0:00:46]}  Bxe4 {[%clk 0:01:13]} 30. Rxe4 {[%clk 0:00:47]}  Qd1 {[%clk 0:01:10]} 31. Bg2 {[%clk 0:00:44]}  c3 {[%clk 0:01:02]} 32. Rc4 {[%clk 0:00:23]}  Qd2 {[%clk 0:00:59]} 33. Qf6 {[%clk 0:00:20]}  Qd3 {[%clk 0:00:45]} 34. Rc7 {[%clk 0:00:19]}  c2 {[%clk 0:00:41]} 35. Be4 {[%clk 0:00:15]}  Qxe4 {[%clk 0:00:35]} 36. f3 {[%clk 0:00:12]}  Qe2+ {[%clk 0:00:28]} 37. Kh3 {[%clk 0:00:12]}  Qf1+ {[%clk 0:00:27]} 38. Kh2 {[%clk 0:00:11]}  Qf2+ {[%clk 0:00:27]} 39. Kh3 {[%clk 0:00:12]}  Rh1# {[%clk 0:00:26]} 0-1


[Site "https://www.chess.com"]

[Event "Titled Tuesday Blitz July 4 Late 2023"]
[White "Zampronha, Wladimir Camilo"]
[Black "Hartikainen, Jarmo"]
[WhiteFideId "2103087"]
[BlackFideId "503134"]
[WhiteElo "2270"]
[BlackElo "2166"]
[Result "1-0"]
[Round "11"]
[TimeControl "180+2"]
[Date "2023.07.04"]
[WhiteClock "0:00:02"]
[BlackClock "0:00:02"]
[Board "102"]

1. e4 {[%clk 0:03:00]}  c5 {[%clk 0:02:59]} 2. Nf3 {[%clk 0:03:01]}  Nc6 {[%clk 0:02:59]} 3. d4 {[%clk 0:03:01]}  cxd4 {[%clk 0:02:59]} 4. Nxd4 {[%clk 0:03:02]}  Nf6 {[%clk 0:02:59]} 5. Nc3 {[%clk 0:03:03]}  d6 {[%clk 0:02:59]} 6. Bg5 {[%clk 0:03:02]}  Bd7 {[%clk 0:02:59]} 7. Qd2 {[%clk 0:03:02]}  e6 {[%clk 0:02:57]} 8. O-O-O {[%clk 0:03:01]}  a6 {[%clk 0:02:57]} 9. f4 {[%clk 0:03:01]}  h6 {[%clk 0:02:56]} 10. Bxf6 {[%clk 0:02:49]}  Qxf6 {[%clk 0:02:56]} 11. Nf3 {[%clk 0:02:23]}  Qd8 {[%clk 0:02:55]} 12. Kb1 {[%clk 0:02:18]}  Qc7 {[%clk 0:02:55]} 13. g4 {[%clk 0:02:18]}  O-O-O {[%clk 0:02:52]} 14. f5 {[%clk 0:02:17]}  Be7 {[%clk 0:02:36]} 15. Bd3 {[%clk 0:02:12]}  Kb8 {[%clk 0:02:13]} 16. h3 {[%clk 0:02:11]}  Bc8 {[%clk 0:01:46]} 17. Qe2 {[%clk 0:02:10]}  Bf6 {[%clk 0:01:36]} 18. Qd2 {[%clk 0:01:56]}  Na5 {[%clk 0:01:20]} 19. Ne2 {[%clk 0:01:48]}  Nc4 {[%clk 0:01:07]} 20. Bxc4 {[%clk 0:01:49]}  Qxc4 {[%clk 0:01:07]} 21. Qd3 {[%clk 0:01:50]}  Qxd3 {[%clk 0:00:54]} 22. cxd3 {[%clk 0:01:49]}  b5 {[%clk 0:00:42]} 23. Rc1 {[%clk 0:01:48]}  Bb7 {[%clk 0:00:42]} 24. Rhf1 {[%clk 0:01:43]}  Rc8 {[%clk 0:00:41]} 25. Rxc8+ {[%clk 0:01:41]}  Rxc8 {[%clk 0:00:41]} 26. Rc1 {[%clk 0:01:38]}  Rxc1+ {[%clk 0:00:40]} 27. Kxc1 {[%clk 0:01:38]}  exf5 {[%clk 0:00:39]} 28. gxf5 {[%clk 0:01:38]}  Kc7 {[%clk 0:00:38]} 29. Kc2 {[%clk 0:01:30]}  Kd7 {[%clk 0:00:37]} 30. Nf4 {[%clk 0:01:27]}  Bg5 {[%clk 0:00:25]} 31. Nh5 {[%clk 0:01:16]}  g6 {[%clk 0:00:23]} 32. Nxg5 {[%clk 0:01:11]}  hxg5 {[%clk 0:00:22]} 33. fxg6 {[%clk 0:01:10]}  fxg6 {[%clk 0:00:22]} 34. Nf6+ {[%clk 0:00:50]}  Ke7 {[%clk 0:00:21]} 35. Ng4 {[%clk 0:00:48]}  Bc8 {[%clk 0:00:19]} 36. Kd2 {[%clk 0:00:48]}  Be6 {[%clk 0:00:18]} 37. a3 {[%clk 0:00:46]}  a5 {[%clk 0:00:14]} 38. Ke3 {[%clk 0:00:46]}  b4 {[%clk 0:00:12]} 39. axb4 {[%clk 0:00:45]}  axb4 {[%clk 0:00:12]} 40. Kd4 {[%clk 0:00:46]}  b3 {[%clk 0:00:12]} 41. Kc3 {[%clk 0:00:45]}  Kd7 {[%clk 0:00:11]} 42. d4 {[%clk 0:00:45]}  d5 {[%clk 0:00:06]} 43. exd5 {[%clk 0:00:24]}  Bxd5 {[%clk 0:00:06]} 44. Nf6+ {[%clk 0:00:19]}  Ke6 {[%clk 0:00:06]} 45. Nxd5 {[%clk 0:00:20]}  Kxd5 {[%clk 0:00:06]} 46. Kxb3 {[%clk 0:00:21]}  Kxd4 {[%clk 0:00:07]} 47. Ka4 {[%clk 0:00:21]}  Kc4 {[%clk 0:00:03]} 48. b4 {[%clk 0:00:21]}  g4 {[%clk 0:00:02]} 49. hxg4 {[%clk 0:00:19]}  g5 {[%clk 0:00:03]} 50. Ka5 {[%clk 0:00:18]}  Kd4 {[%clk 0:00:03]} 51. b5 {[%clk 0:00:18]}  Ke4 {[%clk 0:00:04]} 52. b6 {[%clk 0:00:18]}  Kf4 {[%clk 0:00:05]} 53. b7 {[%clk 0:00:19]}  Kxg4 {[%clk 0:00:06]} 54. b8=Q {[%clk 0:00:20]}  Kf3 {[%clk 0:00:06]} 55. Qh2 {[%clk 0:00:20]}  g4 {[%clk 0:00:06]} 56. Qg1 {[%clk 0:00:20]}  g3 {[%clk 0:00:06]} 57. Kb4 {[%clk 0:00:20]}  g2 {[%clk 0:00:06]} 58. Kc3 {[%clk 0:00:17]}  Kg3 {[%clk 0:00:06]} 59. Kd3 {[%clk 0:00:15]}  Kf3 {[%clk 0:00:06]} 60. Kd2 {[%clk 0:00:14]}  Kg3 {[%clk 0:00:05]} 61. Ke2 {[%clk 0:00:12]}  Kh3 {[%clk 0:00:03]} 62. Kf3 {[%clk 0:00:07]}  Kh4 {[%clk 0:00:03]} 63. Qxg2 {[%clk 0:00:07]}  Kh5 {[%clk 0:00:04]} 64. Qg7 {[%clk 0:00:04]}  Kh4 {[%clk 0:00:02]} 65. Qh6# {[%clk 0:00:02]} 1-0


[Site "https://www.chess.com"]

[Event "Titled Tuesday Blitz July 4 Late 2023"]
[White "Alexikov, Alexander"]
[Black "Mangialardo, Tiago Carvalho"]
[WhiteFideId "14103958"]
[BlackFideId "2130718"]
[WhiteElo "2256"]
[BlackElo "2123"]
[Result "1-0"]
[Round "11"]
[TimeControl "180+2"]
[Date "2023.07.04"]
[WhiteClock "0:00:53"]
[BlackClock "0:00:09"]
[Board "104"]

1. e4 {[%clk 0:03:00]}  Nf6 {[%clk 0:03:00]} 2. e5 {[%clk 0:02:59]}  Nd5 {[%clk 0:02:59]} 3. d4 {[%clk 0:02:59]}  d6 {[%clk 0:03:00]} 4. Nf3 {[%clk 0:02:58]}  Nc6 {[%clk 0:02:59]} 5. c4 {[%clk 0:02:50]}  Nb6 {[%clk 0:02:58]} 6. e6 {[%clk 0:02:49]}  fxe6 {[%clk 0:02:58]} 7. Nc3 {[%clk 0:02:45]}  g6 {[%clk 0:02:50]} 8. h4 {[%clk 0:02:41]}  e5 {[%clk 0:02:33]} 9. d5 {[%clk 0:02:35]}  Nd4 {[%clk 0:02:29]} 10. Nxd4 {[%clk 0:02:35]}  exd4 {[%clk 0:02:30]} 11. Qxd4 {[%clk 0:02:34]}  Rg8 {[%clk 0:02:30]} 12. Bg5 {[%clk 0:02:21]}  Bg7 {[%clk 0:01:57]} 13. Qe3 {[%clk 0:02:19]}  Bf5 {[%clk 0:01:45]} 14. Be2 {[%clk 0:02:15]}  Qd7 {[%clk 0:01:42]} 15. f3 {[%clk 0:02:08]}  h5 {[%clk 0:01:15]} 16. g4 {[%clk 0:02:06]}  hxg4 {[%clk 0:01:15]} 17. fxg4 {[%clk 0:02:05]}  Bxc3+ {[%clk 0:00:42]} 18. bxc3 {[%clk 0:02:04]}  Bc2 {[%clk 0:00:42]} 19. Kd2 {[%clk 0:02:01]}  Ba4 {[%clk 0:00:39]} 20. Rae1 {[%clk 0:01:50]}  O-O-O {[%clk 0:00:31]} 21. Qxe7 {[%clk 0:01:41]}  Rde8 {[%clk 0:00:23]} 22. Qxd7+ {[%clk 0:01:39]}  Bxd7 {[%clk 0:00:24]} 23. Bf6 {[%clk 0:01:22]}  Re4 {[%clk 0:00:23]} 24. h5 {[%clk 0:01:10]}  Bxg4 {[%clk 0:00:15]} 25. h6 {[%clk 0:01:06]}  Nxc4+ {[%clk 0:00:09]} 26. Bxc4 {[%clk 0:01:02]}  Rxc4 {[%clk 0:00:10]} 27. h7 {[%clk 0:00:59]}  Rf8 {[%clk 0:00:11]} 28. h8=Q {[%clk 0:00:56]}  Rxh8 {[%clk 0:00:09]} 29. Rxh8+ {[%clk 0:00:54]}  Kd7 {[%clk 0:00:09]} 30. Re7# {[%clk 0:00:53]} 1-0


[Site "https://www.chess.com"]

[Event "Titled Tuesday Blitz July 4 Late 2023"]
[White "Kovacevic, Radmila"]
[Black "Sainz Aguirre, Ignacio"]
[WhiteFideId "933171"]
[BlackFideId "5101727"]
[WhiteElo "2225"]
[BlackElo "1975"]
[Result "1-0"]
[Round "11"]
[TimeControl "180+2"]
[Date "2023.07.04"]
[WhiteClock "0:02:02"]
[BlackClock "0:00:46"]
[Board "106"]

1. e4 {[%clk 0:02:56]}  e6 {[%clk 0:02:59]} 2. d3 {[%clk 0:02:56]}  d5 {[%clk 0:02:59]} 3. Qe2 {[%clk 0:02:56]}  Nf6 {[%clk 0:02:56]} 4. Nf3 {[%clk 0:02:56]}  dxe4 {[%clk 0:02:55]} 5. dxe4 {[%clk 0:02:55]}  Nc6 {[%clk 0:02:47]} 6. e5 {[%clk 0:02:55]}  Nd5 {[%clk 0:02:45]} 7. c3 {[%clk 0:02:55]}  a5 {[%clk 0:02:43]} 8. g3 {[%clk 0:02:54]}  b6 {[%clk 0:02:36]} 9. Qc2 {[%clk 0:02:52]}  Bb7 {[%clk 0:02:28]} 10. Bg2 {[%clk 0:02:48]}  Ba6 {[%clk 0:02:28]} 11. Qa4 {[%clk 0:02:44]}  Qd7 {[%clk 0:02:09]} 12. c4 {[%clk 0:02:42]}  Ndb4 {[%clk 0:01:48]} 13. O-O {[%clk 0:02:39]}  Bxc4 {[%clk 0:01:45]} 14. Rd1 {[%clk 0:02:35]}  Bd5 {[%clk 0:01:39]} 15. a3 {[%clk 0:02:30]}  b5 {[%clk 0:01:33]} 16. Qxb5 {[%clk 0:02:23]}  Nc2 {[%clk 0:01:29]} 17. Ra2 {[%clk 0:02:21]}  Rb8 {[%clk 0:00:53]} 18. Qd3 {[%clk 0:02:06]}  Qc8 {[%clk 0:00:51]} 19. Qxc2 {[%clk 0:02:02]}  Bxa2 {[%clk 0:00:46]} 20. Qxc6+ {[%clk 0:02:02]} 1-0


[Site "https://www.chess.com"]